Cogmind - Beta 17.1 @@@ ROGUE MODE // 2026.09.03 @ 02:53:39 Player: lavinia Result: Destroyed by G-47 Trooper with Particle Gun Performance ------------- Evolutions (0) 0 Regions Visited (2) 400 Robots Destroyed (20) 100 Value Destroyed (333) 333 Prototype IDs (0) 0 Alien Tech Used (0) 0 Bonus (0) 0 TOTAL SCORE: 833 Bonus ------- None Cogmind --------- Core Integrity 0/250 Matter 300/300 Energy 125/125 System Corruption 0% Temperature Cool (9) Movement Flying (437) Ox5 Location -10/Mines Parts ------- > --- POWER (1) -------- Light Ion Engine > --- PROPULSION (2) --- Flight Unit Flight Unit > --- UTILITY (2) ------ High-capacity Storage Unit > --- WEAPON (2) ------- Light Assault Rifle Light Assault Rifle > --- INVENTORY (20) --- Flight Unit Flight Unit Flight Unit Flight Unit Flight Unit Flight Unit Flight Unit Heat Sink Medium Matter Pod (2) Medium Matter Pod (0) Medium Matter Pod (0) Structural Scanner Signal Interpreter Transport Network Coupler Targeting Computer Core Shielding Grenade Launcher Peak State ------------ > --- POWER ------------ Ion Engine > --- PROPULSION ------- Aluminum Leg Aluminum Leg > --- UTILITY ---------- High-capacity Storage Unit Weight Redist. System > --- WEAPON ----------- Assault Rifle Light Assault Rifle > --- INVENTORY -------- Aluminum Leg Structural Scanner Signal Interpreter Core Shielding Light Assault Rifle Grenade Launcher [Rating: 8] Favorites ----------- Power Ion Engine Engine Ion Engine Propulsion Aluminum Leg Leg Aluminum Leg Flight Unit Flight Unit Utility High-capacity Storage Unit Device Weight Redist. System Storage High-capacity Storage Unit Weapon Light Assault Rifle Ballistic Gun Light Assault Rifle Launcher Grenade Launcher Build | -11 -10 -10 ------- Run | Yrd Mat Min Slots Evolved . | . . . Power . | . . . Propulsion . | . . . Utility . | . . . Weapon . | . . . Parts Attached 18 | 6 12 . Power 2 | 1 1 . Engine 2 | 1 1 . Core . | . . . Reactor . | . . . Propulsion 5 | 2 3 . Treads . | . . . Leg 3 | 2 1 . Wheel . | . . . Hover . | . . . Flight 2 | . 2 . Utility 5 | 1 4 . Device 2 | . 2 . Storage 3 | 1 2 . Processor . | . . . Hackware . | . . . Protection . | . . . Artifact . | . . . Weapon 6 | 2 4 . Energy Gun . | . . . Energy Cannon . | . . . Ballistic Gun 5 | 2 3 . Ballistic Cannon . | . . . Launcher 1 | . 1 . Special Weapon . | . . . Impact Weapon . | . . . Slashing Weapon . | . . . Piercing Weapon . | . . . Special Melee Weapon . | . . . Unidentified Prototypes . | . . . Parts Lost 5 | . 5 . Power 1 | . 1 . Propulsion 2 | . 2 . Utility 1 | . 1 . Weapon 1 | . 1 . Highest Loss Streak 3 | . 3 . To Critical Strikes 1 | . 1 . Average Backups 8 | . 7 17 Power . | . . . Propulsion 2 | . 2 7 Utility 4 | . 4 9 Weapon 1 | . 1 1 Tool/Special . | . . . Unused Backups 12 | . . 12 Power . | . . . Propulsion 7 | . . 7 Utility 5 | . . 5 Weapon . | . . . Tool/Special . | . . . Average Slot Usage (%) 87 | . 87 85 Engine 13 | . 13 14 Leg 19 | . 22 . Flight 6 | . 3 28 Device 4 | . 5 . Storage 14 | . 14 14 Ballistic Gun 27 | . 27 28 Peak Build Rating 8 | 6 8 7 Average Rating 6 | 4 6 7 On Entrance 4 | . 6 7 Avg Prop Armor Cover (%) . | . . . Naked Turns . | . . . Heaviest Build 49 | 13 49 45 Greatest Support 26 | 20 26 8 Greatest Overweight (x) 11 | . 11 5 Average Overweight (x) 1 | . 1 5 Largest Inventory Capacity 20 | 8 20 20 Average Capacity 17 | 6 17 20 Most Carried 17 | 1 17 17 Average Carried 8 | . 7 17 Final Capacity 20 | 8 20 20 Final Carried 17 | 1 17 17 Class Distribution -------------------- 78% | Mutant 21% | Scavenger-Mutant Dominant Class ---------------- Mutant | -10/Materials Scavenger-Mutant | -10/Mines Resources | -11 -10 -10 ----------- Run | Yrd Mat Min Matter Collected 514 | 140 317 57 Remotely . | . . . Salvage Created 465 | . 425 40 Parts 48 | . 39 9 Haulers Intercepted 2 | . 2 . Recyclers Shooed . | . . . Parts Field Recycled . | . . . Retrieved Matter . | . . . Parts Self-Destructed . | . . . Prevented . | . . . Parts Restored . | . . . Kills | -11 -10 -10 ------- Run | Yrd Mat Min Combat Hostiles Destroyed 17 | . 14 3 Guns 14 | . 11 3 AOE 3 | . 3 . Classes Destroyed 4 | . 4 . Hauler 2 | . 2 . Watcher 1 | . 1 . Swarmer 12 | . 9 3 Grunt 5 | . 5 . Best Kill Streak 6 | . 6 3 Combat Bots Only 6 | . 6 3 Max Kills in Single Turn 4 | . 4 1 Gunslinging . | . . . Exploded 3 | . 3 . Melee . | . . . Uniques/NPCs Destroyed . | . . . Combat | -11 -10 -10 -------- Run | Yrd Mat Min Hostile Shots Fired 131 | . 110 21 Missed 34 | . 32 2 Hits 97 | . 78 19 Projectile 97 | . 78 19 Critical Strikes 4 | . 4 . Damage Taken 880 | . 707 173 Core 251 | . 189 62 Absorbed by Shields . | . . . Core Remaining (%) 100 | 100 . . Volleys Fired 53 | . 45 8 Largest 2 | . 2 2 Hottest 50 | . 50 40 Shots Fired 105 | . 89 16 Gun 104 | . 88 16 Cannon . | . . . Launcher 1 | . 1 . Special . | . . . Kinetic 104 | . 88 16 Thermal . | . . . Explosive 1 | . 1 . Electromagnetic . | . . . Robot Hit Streak 9 | . 9 3 Robot Miss Streak 5 | . 5 3 Penetration Max . | . . . Secondary Targets 3 | . 3 . Max Gunslinging Chain 1 | . 1 . Shots Hit Robots 61 | . 54 7 Core Hits 36 | . 32 4 Critical Kills . | . . . Critical Parts Destroyed . | . . . Critical Strikes . | . . . Melee Attacks . | . . . Impact . | . . . Slashing . | . . . Piercing . | . . . Sneak Attacks . | . . . Combat Hostiles . | . . . Follow-up Attacks . | . . . Damage Inflicted 675 | . 619 56 Guns 559 | . 503 56 Cannons . | . . . Explosions 116 | . 116 . Melee . | . . . Ramming . | . . . Kinetic 559 | . 503 56 Thermal . | . . . Explosive 116 | . 116 . Electromagnetic . | . . . Impact . | . . . Slashing . | . . . Piercing . | . . . Highest Corruption . | . . . Average Corruption . | . . . Corruption Purged . | . . . Corruption Blocked . | . . . Overload Shots . | . . . Overflow Damage 5 | . 5 . Projectiles . | . . . Explosions 5 | . 5 . Melee . | . . . Knockbacks . | . . . Impact . | . . . Kinetic . | . . . Secondary . | . . . Self-Inflicted Damage . | . . . Shots . | . . . Rammed . | . . . Targets Rammed . | . . . Kicked . | . . . Crushed . | . . . Highest Temperature 18 | . 18 13 Average Temperature 6 | . 8 4 Received Heat Transfer 180 | . 147 33 Siege Activations . | . . . Martial Activations . | . . . Shielding Activations . | . . . Robots Disrupted . | . . . Combat Hostiles . | . . . Robots Corrupted . | . . . Combat Hostiles . | . . . Parts Fried . | . . . Impact Corruptions . | . . . Robots Melted . | . . . Combat Hostiles . | . . . Parts Melted . | . . . Heat Transferred . | . . . Parts Sabotaged . | . . . Parts Stolen . | . . . Parts Stripped . | . . . Power Chain Reactions . | . . . Alert | -11 -10 -10 ------- Run | Yrd Mat Min Maximum Alert Level . | . . . Low Security (%) 100 | 100 100 100 Level 1 . | . . . Level 2 . | . . . Level 3 . | . . . Level 4 . | . . . Level 5 . | . . . High Security . | . . . Max Security . | . . . Peak Influence 166 | . 166 104 Initial 34 | . . 34 Average 47 | . 47 67 Influence Increases 491 | . 421 70 Destroy 0b10 Robot/C 340 | . 280 60 Destroy 0b10 Robot/NC 15 | . 15 . Destroy Leader 76 | . 66 10 Disable Machine 15 | . 15 . Lose Combat Pursuer 45 | . 45 . Influence Decreases 457 | . 331 126 Entered New Map 56 | . . 56 Time Decay 351 | . 281 70 Lost Part 50 | . 50 . Squads Dispatched 3 | . 3 . Investigation . | . . . Extermination . | . . . Reinforcement 3 | . 3 . Assault . | . . . Garrison . | . . . Intercept . | . . . Searches Triggered . | . . . Construction Impeded . | . . . Haulers Reinforced . | . . . Active Scanning Responses . | . . . Cargo Convoy Interrupts . | . . . Stealth | -11 -10 -10 --------- Run | Yrd Mat Min Distress Signals 2 | . 2 . Communications Jammed . | . . . Distress Signals . | . . . Times Spotted 33 | . 28 5 Peak Tracking Total 6 | . 6 3 Tactical Retreats 2 | . 2 . Traps | -11 -10 -10 ------- Run | Yrd Mat Min Traps Triggered . | . . . Indirectly . | . . . Trap Hack Attempts . | . . . Triggered . | . . . Disarmed . | . . . Reprogrammed . | . . . Reused . | . . . Traps Extracted . | . . . Installed . | . . . Triggered . | . . . Machines | -11 -10 -10 ---------- Run | Yrd Mat Min Machines Disabled 1 | . 1 . Max in Single Turn 1 | . 1 . Machines Repaired . | . . . Machines Dismantled . | . . . Machines Sabotaged . | . . . Overloaded Fab Kills . | . . . Hacking | -11 -10 -10 --------- Run | Yrd Mat Min Machines Accessed 1 | . 1 . Terminals . | . . . Fabricators . | . . . Repair Stations 1 | . 1 . Recycling Units . | . . . Scanalyzers . | . . . Garrison Access . | . . . Total Hacks 3 | . 3 . Successful 1 | . 1 . Failed 2 | . 2 . Catastrophic . | . . . Database Lockouts . | . . . Manual . | . . . Terminals . | . . . Fabricators . | . . . Repair Stations 3 | . 3 . Recycling Units . | . . . Scanalyzers . | . . . Garrison Access . | . . . Terminal Hacks . | . . . Fabricator Hacks . | . . . Repair Station Hacks 1 | . 1 . Scan Component 1 | . 1 . Recycling Unit Hacks . | . . . Scanalyzer . | . . . Garrison Access Hacks . | . . . Unauthorized Hacks . | . . . Terminals . | . . . Fabricators . | . . . Repair Stations . | . . . Recycling Units . | . . . Scanalyzers . | . . . Garrison Access . | . . . Data Cores Recovered . | . . . Used . | . . . Hacking Detections 1 | . 1 . Full Trace Events 1 | . 1 . Feedback Events . | . . . Feedback Blocked . | . . . Robot Schematics Acquired . | . . . Robots Built . | . . . Authchips . | . . . Time . | . . . Total Robot Build Rating . | . . . Part Schematics Acquired . | . . . Parts Built . | . . . Authchips . | . . . Time . | . . . Total Part Build Rating . | . . . Part Studies Acquired . | . . . Parts Repaired . | . . . Time . | . . . Parts Recycled . | . . . Recycled Matter . | . . . Retrieved Matter . | . . . Retrieved Components . | . . . Parts Scanalyzed . | . . . Part Schematics Acquired . | . . . Parts Damaged . | . . . Bothacking | -11 -10 -10 ------------ Run | Yrd Mat Min Used RIF Installer . | . . . Robots Hacked . | . . . Non-combat . | . . . Combat . | . . . Robot Hacks Applied . | . . . Relay Couplers Released . | . . . Fabnet Peak Effective % . | . . . Robots Rewired . | . . . Allies Hacked . | . . . Hacks Repelled . | . . . Allies | -11 -10 -10 -------- Run | Yrd Mat Min Total Allies . | . . . Largest Group . | . . . Highest-Rated Group . | . . . Highest-Rated Ally . | . . . Total Orders . | . . . Ally Attacks . | . . . Total Damage . | . . . Kills . | . . . Allies Corrupted . | . . . Allies Melted . | . . . Intel | -11 -10 -10 ------- Run | Yrd Mat Min Active Infowar (turns) 181 | . 181 . Structural 181 | . 181 . Robot Analysis Total . | . . . Derelict Logs Recovered . | . . . Drone Launches . | . . . Drone Recoveries . | . . . Exploration | -11 -10 -10 ------------- Run | Yrd Mat Min Turns Passed 1243 | 51 1046 146 Spaces Moved 480 | 38 413 29 Core 5 | 5 . . Treads . | . . . Legs 414 | 33 381 . Wheels . | . . . Hover . | . . . Flight 61 | . 32 29 Fastest Speed 50 | 50 120 437 Average Speed 221 | 110 216 437 Slowest Speed 920 | 120 920 437 Overloaded Moves . | . . . Propulsion Burnouts . | . . . Robots Hopped . | . . . Potential Cave-ins . | . . . Cave-ins Triggered . | . . . Exploration Rate (%) 24 | 4 57 12 Regions Visited 2 Branch Regions 1 Pre-discovered Areas . | . . . Known Exits Taken . | . . . Unknown Exits Taken 2 | 1 1 . Scrap Searched . | . . . Spaces Dug . | . . . Terrain Destroyed . | . . . Melee . | . . . Projectile . | . . . AOE . | . . . Terrain Rammed . | . . . Walls Destroyed . | . . . Machines Disabled . | . . . Actions | -11 -10 -10 --------- Run | Yrd Mat Min Total 575 | 44 494 37 Wait 1 | . 1 . Move 478 | 37 412 29 Hop . | . . . Pick Up 18 | 1 17 . Fast Attach 13 | 6 7 . Attach 3 | . 3 . Detach 2 | . 2 . Swap 2 | . 2 . Drop 5 | . 5 . Fire 53 | . 45 8 Melee . | . . . Ram . | . . . Kick . | . . . Crush . | . . . Escape Stasis . | . . . Rewire . | . . . Trap . | . . . Miscellaneous . | . . . Route ------- -11/Scrapyard -10/Materials (discovered 2 exits: [*Mat] / [*Min]) -10/Mines History --------- Turn | Location | Event 5 | -11/Scrapyard | Discovered new exit (range 14) 52 | -11/Scrapyard | Entered Materials 309 | -10/Materials | Build established: Mutant 568 | -10/Materials | Discovered new exit (range 5) 808 | -10/Materials | Core integrity fell below 50% 840 | -10/Materials | Lost 3 parts (2n1w) 854 | -10/Materials | Discovered new exit (range 15) 1098 | -10/Materials | Entered Mines 1101 | -10/Mines | Core integrity fell below 20% 1177 | -10/Mines | Met a Derelict bent on vengeance 1244 | -10/Mines | Destroyed by G-47 Trooper with Particle Gun Last Messages --------------- 00980_ Acquired Lgt. Assault Rifle. 00999_ Acquired 9 matter. 01028_ R-06 Scavenger collects Lgt. Assault Rifle. 01028_ K-01 Serf collects debris. 01032_ R-06 Scavenger collects Aluminum Leg. 01037_ R-06 Scavenger collects Lgt. Assault Rifle. 01074_ Acquired Med. Matter Pod. LOCATION=UNKNOWN GOAL=ESCAPE Something is scanning the area. 01101_ S-10 Pest destroyed. 01189_ K-01 Serf collects debris. 01226_ ZZ-LLO(g) suffers critical hit (Burn). 01227_ ZZ-LLO(g): "TASTE MY VENGEANCE!" 01233_ ZZ-LLO(g) heat short circuits Carbon-fiber Leg. 01233_ ZZ-LLO(g) destroyed. 01242_ Acquired 57 matter. Map ----- +----------------------------------------------------+ | ?????????????????????????????????????????????????? | | ?????????????????????????????????????????????????? | | ??????????????????????????????????########???????? | | ??????????????????????????????????#=%[==%#???????? | | ??????????????????????????????????# * [%*#???????? | | ??????????????????????????????????# =[#???????? | | ??????????????????????????????????# #???????? | | ??????????????????????????????????# #???????? | | ??????????????????????????????????# #???????? | | ??????????????????????????????????# #???????? | | ????????????????????????????######## #####???????? | | ???????????????????????????# #???????????? | | ???????????????????????????# ####### ########????? | | ???????????????????????????????????# | | ??????????????????????????##???????# ########????? | | ?????????????????????????# ####### #???????????? | | ????????????????????##### #???????????? | | ???????????????????## ###### #???????????? | | ????????????????#### ????????# #???????????? | | ????????????????? t ????##### #???????????? | | ?????????????????? ????# #???????????? | | ???????????????????? ????# #####???????????? | | ?????????????????????#r gg#????# #???????????????? | | ??????????????????????# ##???# #???????????????? | | ??????????????????????# ##### ####????????????? | | ???????????????????????#!@= #????????????? | | ???????????????????????# #????????????? | | ???????????????????????# ###### #????????????? | | ???????????????????????# #????? #????????????? | | ???????????????????????## ##??????#????????????? | | ????????????????????????#####????????????????????? | | ?????????????????????????????????????????????????? | | ?????????????????????????????????????????????????? | | ?????????????????????????????????????????????????? | | ?????????????????????????????????????????????????? | | ?????????????????????????????????????????????????? | | ?????????????????????????????????????????????????? | | ?????????????????????????????????????????????????? | | ?????????????????????????????????????????????????? | | ?????????????????????????????????????????????????? | | ?????????????????????????????????????????????????? | | ?????????????????????????????????????????????????? | | ?????????????????????????????????????????????????? | | ?????????????????????????????????????????????????? | | | | | | | | | | | | | +----------------------------------------------------+ Best States ------------- Heat Dissipation 25 Energy Generation 10 Energy Capacity 250 Matter Stores 300 Matter Capacity 300 Sight Range 16 Terrain Scan Density 10 Additional Mass Support 6 Evasion (%) 55 Item Schematics ----------------- None Robot Schematics ------------------ None Fabricated ------------ Nothing Repaired ---------- Nothing Studied --------- None Alien Tech Used ----------------- None Achievements -------------- None Challenges ------------ None Game ------ Seed EnergyProcessingAirjet Manual? 0 Play Time 00:11:33 Cumulative 16.2 hours Start 2026.09.03 @ 02:40:38 End 2026.09.03 @ 02:53:39 Sessions 1 Manual Loads 0 Difficulty Rogue Special Mode None Game No. 34 Rogue 34 Adventurer 0 Explorer 0 Win Type - Total 0 Types 0/0/0/0/0/0/0/0/0/0 Lore% 12 Gallery% 10 Achievement% 11 Wizard Run 0 Options --------- Layout 1 ASCII 0 Keyboard 0 Movement Mouse Keybinds 0 Fullscreen 1 Font 24/Smallcaps Map View 50x35 Zoom Use 0% Tactical HUD 1 Map Filters NONE Filters NONE Steam 1 RUN: f9e2344c-fbee-47f7-bc6c-aa1826becfeb